Cogmind - Beta 13 @@@ ROGUE MODE // 2024.07.03 @ 13:46:44 Player: komunre Result: Destroyed by Y-45 Defender with Beam Rifle Performance ------------- Evolutions (1) 500 Regions Visited (2) 400 Robots Destroyed (66) 330 Value Destroyed (1550) 1550 Prototype IDs (1) 20 Alien Tech Used (0) 0 Bonus (0) 0 TOTAL SCORE: 2800 Bonus ------- None Cogmind --------- Core Integrity 0/400 Matter 141/300 Energy 160/160 System Corruption 0% Temperature Cool (63) Movement Treading (480) Ox4 Location -9/Materials Parts ------- > --- POWER (1) -------- Light Nuclear Core > --- PROPULSION (2) --- Light Treads > --- UTILITY (4) ------ Huge Storage Unit Seismic Detector Light Armor Plating > --- WEAPON (2) ------- Beam Rifle Improved Grenade Launcher > --- INVENTORY (25) --- Aluminum Leg Aluminum Leg Huge Storage Unit High-capacity Battery (250) High-capacity Matter Pod (200) Sensor Array Signal Interpreter Improved Terrain Scanner System Shield Medium Laser Particle Gun Beam Cannon Heavy Assault Rifle Improved Assault Rifle Flak Cannon Flak Cannon Flak Cannon Flak Cannon Grenade Launcher Improved Grenade Launcher Improved Grenade Launcher Peak State ------------ > --- POWER ------------ Light Ion Engine > --- PROPULSION ------- Light Treads Light Treads > --- UTILITY ---------- Improved Heat Sink Huge Storage Unit Propulsion Shielding Light Armor Plating > --- WEAPON ----------- Flak Cannon Flak Cannon > --- INVENTORY -------- Ion Engine Light Nuclear Core Hover Unit Hover Unit High-capacity Storage Unit Huge Storage Unit High-capacity Battery High-capacity Matter Pod Sensor Array Signal Interpreter Improved Terrain Scanner Seismic Detector System Shield Medium Laser Medium Laser Small Laser Particle Gun Beam Cannon Light Assault Rifle Grenade Launcher Improved Grenade Launcher Improved Grenade Launcher Improved Grenade Launcher Improved Grenade Launcher Mining Claw [Rating: 19] Favorites ----------- Power Light Ion Engine Engine Light Ion Engine Power Core Light Nuclear Core Propulsion Light Treads Treads Light Treads Leg Aluminum Leg Wheel Compact Wheel Hover Unit Hover Unit Utility Improved Heat Sink Device Improved Heat Sink Storage High-capacity Storage Unit Protection Light Armor Plating Weapon Medium Laser Energy Gun Medium Laser Energy Cannon Beam Cannon Ballistic Cannon Flak Cannon Launcher Improved Grenade Launcher Slashing Weapon Mining Claw Build | -11 -10 -9 ------- Run | Yrd Mat Mat Slots Evolved 2 | . . 2 Power . | . . . Propulsion . | . . . Utility 2 | . . 2 Weapon . | . . . Parts Attached 49 | 10 10 29 Power 6 | 1 4 1 Engine 5 | 1 4 . Core 1 | . . 1 Reactor . | . . . Propulsion 13 | 4 1 8 Treads 6 | 2 1 3 Leg 3 | . . 3 Wheel 2 | 2 . . Hover 2 | . . 2 Flight . | . . . Utility 12 | 3 3 6 Device 4 | 2 1 1 Storage 4 | 1 2 1 Processor . | . . . Hackware . | . . . Protection 4 | . . 4 Artifact . | . . . Weapon 18 | 2 2 14 Energy Gun 8 | 2 1 5 Energy Cannon 1 | . 1 . Ballistic Gun . | . . . Ballistic Cannon 4 | . . 4 Launcher 4 | . . 4 Special Weapon . | . . . Impact Weapon . | . . . Slashing Weapon 1 | . . 1 Piercing Weapon . | . . . Special Melee Weapon . | . . . Unidentified Prototypes . | . . . Parts Lost 14 | . 2 12 Power 2 | . 1 1 Propulsion 4 | . . 4 Utility 4 | . . 4 Weapon 4 | . 1 3 Highest Loss Streak 7 | . 2 7 To Critical Strikes . | . . . Average Slot Usage (%) 93 | . 99 84 Engine 9 | . 13 3 Core 1 | . . 3 Treads 22 | . 27 13 Leg 2 | . . 6 Device 11 | . 14 7 Storage 12 | . 14 11 Protection 7 | . . 18 Energy Gun 12 | . 15 7 Energy Cannon 7 | . 12 . Ballistic Cannon 2 | . . 5 Launcher 2 | . . 6 Naked Turns . | . . . Heaviest Build 101 | 13 51 101 Greatest Support 40 | 40 40 40 Greatest Overweight (x) 28 | . 1 28 Average Overweight (x) 1 | . . 3 Largest Inventory Capacity 25 | 8 20 25 Average Capacity 20 | 7 17 24 Most Carried 25 | 7 20 25 Average Carried 17 | 5 14 23 Final Capacity 25 | 8 20 25 Final Carried 21 | 7 20 21 Class Distribution -------------------- 91% | Mutant 8% | Scavenger-Mutant Dominant Class ---------------- Mutant | -10/Materials Mutant | -9/Materials Resources | -11 -10 -9 ----------- Run | Yrd Mat Mat Matter Collected 965 | 290 302 373 Remotely . | . . . Salvage Created 1949 | 166 980 803 Parts 125 | 7 54 64 Haulers Intercepted 3 | . 2 1 Recyclers Shooed 1 | . . 1 Parts Field Recycled . | . . . Retrieved Matter . | . . . Parts Self-Destructed . | . . . Prevented . | . . . Kills | -11 -10 -9 ------- Run | Yrd Mat Mat Combat Hostiles Destroyed 37 | . 18 19 Melee 2 | . . 2 Guns 12 | . 9 3 Cannons 10 | . 8 2 AOE 12 | . . 12 Classes Destroyed 10 | 3 6 1 Worker 9 | 2 . 7 Builder 3 | . 1 2 Tunneler 6 | 3 3 . Hauler 3 | . 2 1 Recycler 2 | 1 . 1 Operator 2 | . 1 1 Watcher 4 | . 3 1 Swarmer 3 | . 3 . Grunt 29 | . 15 14 Sentry 5 | . . 5 Best Kill Streak 7 | 4 4 7 Combat Bots Only 4 | . 3 4 Max Kills in Single Turn 4 | 1 2 4 Gunslinging . | . . . Exploded 3 | . . 3 Melee 1 | . . 1 Uniques/NPCs Destroyed . | . . . Combat | -11 -10 -9 -------- Run | Yrd Mat Mat Hostile Shots Fired 189 | . 75 114 Missed 53 | . 27 26 Damage Taken 2082 | . 611 1471 Core 515 | . 101 414 Absorbed by Shields . | . . . Redirected to Shielding 51 | . . 51 Regen/Repaired (Parts) 119 | . 119 . Core Remaining (%) 79 | 100 59 . Volleys Fired 138 | 14 69 55 Largest 2 | 2 2 2 Hottest 110 | 100 110 105 Shots Fired 255 | 28 137 90 Gun 169 | 28 85 56 Cannon 72 | . 52 20 Launcher 14 | . . 14 Special . | . . . Kinetic 20 | . . 20 Thermal 221 | 28 137 56 Explosive 14 | . . 14 Electromagnetic . | . . . Robot Hit Streak 11 | 6 9 11 Robot Miss Streak 8 | 4 5 8 Penetration Max . | . . . Secondary Targets 1 | . 1 . Max Gunslinging Chain 1 | . 1 . Shots Hit Robots 175 | 18 81 76 Core Hits 98 | 7 41 50 Critical Kills 1 | . 1 . Critical Parts Destroyed . | . . . Critical Strikes 9 | 1 5 3 Burn 8 | 1 4 3 Meltdown 1 | . 1 . Melee Attacks 14 | . . 14 Impact . | . . . Slashing 14 | . . 14 Piercing . | . . . Sneak Attacks 1 | . . 1 Combat Hostiles . | . . . Follow-up Attacks . | . . . Damage Inflicted 4001 | 225 1295 2481 Guns 1513 | 225 720 568 Cannons 759 | . 574 185 Explosions 1398 | . . 1398 Melee 330 | . . 330 Ramming 1 | . 1 . Kinetic 185 | . . 185 Thermal 2087 | 225 1294 568 Explosive 1398 | . . 1398 Electromagnetic . | . . . Impact . | . . . Slashing 330 | . . 330 Piercing . | . . . Highest Corruption . | . . . Average Corruption . | . . . Corruption Purged . | . . . Corruption Blocked . | . . . Overload Shots . | . . . Overflow Damage 25 | . . 25 Projectiles . | . . . Explosions 17 | . . 17 Melee 8 | . . 8 Knockbacks 4 | . . 4 Impact . | . . . Kinetic 4 | . . 4 Secondary . | . . . Self-Inflicted Damage 241 | . . 241 Shots 4 | . . 4 Rammed 1 | . 1 . Targets Rammed 1 | . 1 . Kicked . | . . . Crushed . | . . . Highest Temperature 390 | 234 390 130 Average Temperature 76 | 79 81 43 Received Heat Transfer 804 | . 303 501 Siege Activations . | . . . Robots Corrupted . | . . . Combat Hostiles . | . . . Parts Fried . | . . . Impact Corruptions . | . . . Robots Melted 1 | . 1 . Combat Hostiles 1 | . 1 . Parts Melted 10 | 2 5 3 Heat Transferred 6216 | 740 3626 1850 Parts Sabotaged . | . . . Parts Stolen . | . . . Parts Stripped . | . . . Power Chain Reactions . | . . . Alert | -11 -10 -9 ------- Run | Yrd Mat Mat Peak Influence 370 | 30 211 370 Initial 19 | . 19 7 Average 88 | 12 81 108 Maximum Alert Level 1 | . 1 1 Low Security (%) 87 | 100 91 79 Level 1 12 | . 8 20 Level 2 . | . . . Level 3 . | . . . Level 4 . | . . . Level 5 . | . . . High Security . | . . . Max Security . | . . . Squads Dispatched 11 | . 7 4 Investigation 5 | . 2 3 Extermination . | . . . Reinforcement 6 | . 5 1 Assault . | . . . Garrison . | . . . Intercept . | . . . Searches Triggered . | . . . Construction Impeded . | . . . Haulers Reinforced . | . . . Active Scanning Responses . | . . . Cargo Convoy Interrupts . | . . . Stealth | -11 -10 -9 --------- Run | Yrd Mat Mat Distress Signals 4 | . 2 2 Communications Jammed . | . . . Distress Signals . | . . . Times Spotted 51 | . 27 24 Peak Tracking Total 6 | . 3 6 Tactical Retreats . | . . . Traps | -11 -10 -9 ------- Run | Yrd Mat Mat Traps Triggered 3 | . 2 1 Indirectly . | . . . Trap Hack Attempts . | . . . Triggered . | . . . Disarmed . | . . . Reprogrammed . | . . . Reused . | . . . Traps Extracted . | . . . Installed . | . . . Triggered . | . . . Machines | -11 -10 -9 ---------- Run | Yrd Mat Mat Machines Disabled 10 | . 2 8 Max in Single Turn 2 | . 1 2 Machines Repaired . | . . . Machines Dismantled . | . . . Machines Sabotaged . | . . . Overloaded Fab Kills . | . . . Hacking | -11 -10 -9 --------- Run | Yrd Mat Mat Machines Accessed 5 | . 2 3 Terminals 3 | . 1 2 Fabricators . | . . . Repair Stations 1 | . 1 . Recycling Units . | . . . Scanalyzers 1 | . . 1 Garrison Access . | . . . Total Hacks 17 | . 9 8 Successful 11 | . 4 7 Failed 6 | . 5 1 Catastrophic 1 | . 1 . Database Lockouts . | . . . Manual 6 | . 2 4 Terminals 12 | . 7 5 Fabricators . | . . . Repair Stations 2 | . 2 . Recycling Units . | . . . Scanalyzers 3 | . . 3 Garrison Access . | . . . Terminal Hacks 6 | . 2 4 Record 6 | . 2 4 Fabricator Hacks . | . . . Repair Station Hacks 2 | . 2 . Scan Component 1 | . 1 . Repair 1 | . 1 . Recycling Unit Hacks . | . . . Scanalyzer 3 | . . 3 Insert Component 1 | . . 1 Analyze 2 | . . 2 Garrison Access Hacks . | . . . Unauthorized Hacks . | . . . Terminals . | . . . Fabricators . | . . . Repair Stations . | . . . Recycling Units . | . . . Scanalyzers . | . . . Garrison Access . | . . . Data Cores Recovered . | . . . Used . | . . . Hacking Detections 6 | . 3 3 Full Trace Events 3 | . 1 2 Feedback Events . | . . . Feedback Blocked . | . . . Robot Schematics Acquired . | . . . Robots Built . | . . . Authchips . | . . . Time . | . . . Total Robot Build Rating . | . . . Part Schematics Acquired 1 | . . 1 Parts Built . | . . . Authchips . | . . . Time . | . . . Total Part Build Rating . | . . . Parts Repaired 1 | . 1 . Time 26 | . 26 . Parts Recycled . | . . . Recycled Matter . | . . . Retrieved Matter . | . . . Retrieved Components . | . . . Parts Scanalyzed 1 | . . 1 Part Schematics Acquired 1 | . . 1 Parts Damaged . | . . . Bothacking | -11 -10 -9 ------------ Run | Yrd Mat Mat Used RIF Installer . | . . . Robots Hacked . | . . . Non-combat . | . . . Combat . | . . . Robot Hacks Applied . | . . . Relay Couplers Released . | . . . Fabnet Peak Effective % . | . . . Robots Rewired . | . . . Allies Hacked . | . . . Hacks Repelled . | . . . Allies | -11 -10 -9 -------- Run | Yrd Mat Mat Total Allies . | . . . Largest Group . | . . . Highest-Rated Group . | . . . Highest-Rated Ally . | . . . Total Orders . | . . . Ally Attacks . | . . . Total Damage . | . . . Kills . | . . . Allies Corrupted . | . . . Allies Melted . | . . . Intel | -11 -10 -9 ------- Run | Yrd Mat Mat Robot Analysis Total . | . . . Derelict Logs Recovered . | . . . Drone Launches . | . . . Drone Recoveries . | . . . Exploration | -11 -10 -9 ------------- Run | Yrd Mat Mat Turns Passed 3708 | 212 2083 1413 Spaces Moved 1177 | 107 792 278 Core 20 | 18 . 2 Treads 1129 | 76 792 261 Legs 15 | . . 15 Wheels 13 | 13 . . Hover . | . . . Flight . | . . . Fastest Speed 50 | 50 160 240 Average Speed 259 | 132 223 411 Slowest Speed 1450 | 160 240 1450 Overloaded Moves . | . . . Propulsion Burnouts . | . . . Robots Hopped . | . . . Cave-ins Triggered . | . . . Exploration Rate (%) 41 | 5 85 33 Regions Visited 2 Branch Regions . Pre-discovered Areas . | . . . Known Exits Taken . | . . . Unknown Exits Taken 2 | 1 1 . Scrap Searched . | . . . Spaces Dug . | . . . Terrain Destroyed 192 | . 23 169 Melee . | . . . Projectile . | . . . AOE 192 | . 23 169 Terrain Rammed . | . . . Walls Destroyed . | . . . Machines Disabled . | . . . Actions | -11 -10 -9 --------- Run | Yrd Mat Mat Total 1548 | 148 974 426 Wait 81 | . 61 20 Move 1175 | 106 791 278 Hop . | . . . Pick Up 66 | 16 29 21 Fast Attach . | . . . Attach 23 | 7 3 13 Detach . | . . . Swap 26 | 3 7 16 Drop 24 | 2 13 9 Fire 138 | 14 69 55 Melee 14 | . . 14 Ram . | . . . Kick . | . . . Crush 1 | . 1 . Escape Stasis . | . . . Rewire . | . . . Trap . | . . . Miscellaneous . | . . . Route ------- -11/Scrapyard -10/Materials (discovered 4 exits: *Mat x2 / [*Min x2]) -9/Materials (discovered 1 exit: [*Min]) History --------- Turn | Location | Event 7 | -11/Scrapyard | Discovered new exit (range 16) 213 | -11/Scrapyard | Entered Materials 309 | -10/Materials | Build established: Mutant 548 | -10/Materials | Discovered new exit (range 16) 1023 | -10/Materials | Discovered new exit (range 13) 1383 | -10/Materials | Discovered new exit (range 13) 1558 | -10/Materials | Discovered new exit (range 7) 2113 | -10/Materials | Repaired Lgt. Treads 2296 | -10/Materials | Entered another Materials area 2296 | -9/Materials | Evolved 2 slots: Utility x2 3257 | -9/Materials | Core integrity fell below 50% 3274 | -9/Materials | Core integrity fell below 20% 3282 | -9/Materials | Discovered new exit (range 9) 3295 | -9/Materials | Lost 7 parts (2n3u2w) 3590 | -9/Materials | Build established: Scavenger-Mutant 3709 | -9/Materials | Destroyed by Y-45 Defender with Beam Rifle Last Messages --------------- U-05 Engineer lays Concrete. U-05 Engineer builds a Wall. U-05 Engineer lays Concrete. The unstable cave ceiling collapses. U-05 Engineer builds a Wall. The unstable cave ceiling collapses. Terminal disabled. The unstable cave ceiling collapses. U-05 Engineer lays Concrete. U-05 Engineer builds a Wall. U-05 Engineer lays Concrete. Imp. Grenade Launcher destroyed. U-05 Engineer lays Concrete. The unstable cave ceiling collapses. G-34 Mercenary destroyed. W-16 Scout destroyed. Critical hit (Burn: +37). U-05 Engineer lays Concrete. Y-45 Defender destroyed. U-05 Engineer lays Concrete. Map ----- +----------------------------------------------------+ | [ # ##?"!"!" #??????????????????????????? | | #* [## ##?????????????????????????? | | * ! [[#[ * ???????????????????????? | | %==! = < ???????????????????????? | | # # # ???????????????????????? | | ###### ###+## ##+#???##??????????????????? | | ?????### #########????? ??????????????????? | | ???????# """ #???????# ????" #?????????????????? | | ???????# """ #???????# ??"" #?????????????????? | | ???????#* """ #???????# ?"" #?????????????????? | | ???????# #???????# #?????????????????? | | ???????# #???????# """ #?????????????????? | | ???????####/###???????# """ #?????????????????? | | ?#######??# #?????##### """ #?????????????????? | | ?# ### ####### ##????????????????? | | ?# # #############??????????????? | | ?# # # [#??????????????? | | ?# +*= "" # #??????????????? | | ?# # = " #??????????????? | | ?# + " " #??????????????? | | ?# # [ " T u # #??????????????? | | ?#+#+#### "" # # # ##??????????????? | | ?# # # ##???????????????? | | ?# # #????????????????? | | ?+ #????????????????? | | ?# @ #????????????????? | | ?+ == a #????????????????? | | ?# = #????????????????? | | ?# " """"" #????????????????? | | ?# """"""""" ???????????????? | | ?# """ """ #?????????????? | | ?# = #?????????????? | | ?# ! =%=* + ????????????? | | ?# t ![ = ###???????????? | | ?####+##### ######### * g #?????????????? | | ???? ????# #???????? #?????????????? | | ???? ?????#! !#????????"" ?????????????? | | ???????????#!!!!##????????R"# #????????????? | | ????????????#####???????????? ??????????????? | | ????????????????????????????? ? ?????????????????? | | ?????????????????????????????????????????????????? | | ?????????????????????????????????????????????????? | | ?????????????????????????????????????????????????? | | ?????????????????????????????????????????????????? | | ?????????????????????????????????????????????????? | | ?????????????????????????????????????????????????? | | ?????????????????????????????????????????????????? | | ?????????????????????????????????????????????????? | | ?????????????????????????????????????????????????? | | ?????????????????????????????????????????????????? | +----------------------------------------------------+ Best States ------------- Heat Dissipation 42 Energy Generation 14 Energy Capacity 250 Matter Stores 300 Matter Capacity 300 Sight Range 16 Terrain Scan Range 16 Terrain Scan Density 10 Armor Coverage 300 Propulsion Shielding 33 Evasion (%) 42 Recoil Reduction 2 Item Schematics ----------------- Imp. Assault Rifle | -9/Materials | Scanalyzed Robot Schematics ------------------ None Fabricated ------------ Nothing Alien Tech Used ----------------- None Achievements -------------- It's Just You Let's See Who's Tougher More Dakka Please Challenges ------------ None Game ------ Seed TerrainThunderExtractor Manual? 0 Play Time 00:35:13 Cumulative 4.6 hours Start 2024.07.03 @ 13:14:05 End 2024.07.03 @ 13:46:44 Sessions 1 Manual Loads 0 Difficulty Rogue Special Mode None Game No. 5 Rogue 5 Adventurer 0 Explorer 0 Win Type - Total 0 Types 0/0/0/0/0/0/0/0/0 Lore% 1 Gallery% 8 Achievement% 8 Wizard Run 0 Options --------- Layout 1 ASCII 0 Keyboard 0 Movement Numpad Keybinds 0 Fullscreen 1 Font 24/Smallcaps Map View 50x35 Zoom Use 0% Tactical HUD 0 Map Filters NONE Filters NONE Steam 1 RUN: 9a4a2052-a48c-43a6-9f58-448c05d05c91